[Event "Early-Titled-Tuesday-Blitz-February-06-2024"]
[Site "Chess.com"]
[Date "2024.02.06"]
[Round "7"]
[White "Narek_Ghimoyan"]
[Black "Kaissa10"]
[Result "1/2-1/2"]
[WhiteElo "2418"]
[BlackElo "2301"]
[TimeControl "180+1"]
[EndTime "9:16:09 PST"]
[Termination "Game drawn by repetition"]

1. d4 {[%clk 0:03:00.9]} 1... d5 {[%clk 0:02:59.9]} 2. c4 {[%clk 0:02:59.2]}
2... e6 {[%clk 0:02:59.9]} 3. Nc3 {[%clk 0:02:59.4]} 3... Nf6 {[%clk 0:02:59.4]}
4. Nf3 {[%clk 0:02:59.9]} 4... Bb4 {[%clk 0:02:59.3]} 5. Bg5 {[%clk 0:02:58]}
5... h6 {[%clk 0:02:55.3]} 6. Bxf6 {[%clk 0:02:57.9]} 6... Qxf6 {[%clk
0:02:55.9]} 7. e3 {[%clk 0:02:58.8]} 7... O-O {[%clk 0:02:55.6]} 8. Rc1 {[%clk
0:02:59]} 8... c5 {[%clk 0:02:54.9]} 9. dxc5 {[%clk 0:02:56]} 9... dxc4 {[%clk
0:02:52.2]} 10. Bxc4 {[%clk 0:02:54.4]} 10... Nc6 {[%clk 0:02:48.5]} 11. O-O
{[%clk 0:02:53.6]} 11... Qe7 {[%clk 0:02:27.2]} 12. Ne4 {[%clk 0:02:47.2]} 12...
Rd8 {[%clk 0:02:06.5]} 13. Qe2 {[%clk 0:02:40.2]} 13... f5 {[%clk 0:01:55]} 14.
Nd6 {[%clk 0:02:39.6]} 14... Kh8 {[%clk 0:01:42.7]} 15. a3 {[%clk 0:02:26.5]}
15... Bxc5 {[%clk 0:01:41.1]} 16. Nxc8 {[%clk 0:02:26.1]} 16... Raxc8 {[%clk
0:01:36.6]} 17. Bxe6 {[%clk 0:02:26.2]} 17... Qxe6 {[%clk 0:01:22.6]} 18. Rxc5
{[%clk 0:02:24.5]} 18... Qe7 {[%clk 0:00:54.8]} 19. Rfc1 {[%clk 0:02:22.5]}
19... Nd4 {[%clk 0:00:53.8]} 20. Qc4 {[%clk 0:02:03.3]} 20... Rxc5 {[%clk
0:00:24.3]} 21. Qxc5 {[%clk 0:01:57.1]} 21... Nxf3+ {[%clk 0:00:11.6]} 22. gxf3
{[%clk 0:01:55.9]} 22... Rd1+ {[%clk 0:00:11.6]} 23. Kg2 {[%clk 0:01:47.6]}
23... Qg5+ {[%clk 0:00:11.8]} 24. Kh3 {[%clk 0:01:47]} 24... Qh5+ {[%clk
0:00:08.8]} 25. Kg3 {[%clk 0:01:41.1]} 25... Qg5+ {[%clk 0:00:03.6]} 26. Kh3
{[%clk 0:01:40.5]} 26... Qh5+ {[%clk 0:00:02.2]} 27. Kg2 {[%clk 0:01:39.9]}
27... Qg5+ {[%clk 0:00:02.3]} 28. Kh3 {[%clk 0:01:39.5]} 1/2-1/2

[Event "Early-Titled-Tuesday-Blitz-February-06-2024"]
[Site "Chess.com"]
[Date "2024.02.06"]
[Round "7"]
[White "AradNazari"]
[Black "RandomNoob04"]
[Result "1-0"]
[WhiteElo "2778"]
[BlackElo "2580"]
[TimeControl "180+1"]
[EndTime "9:16:10 PST"]
[Termination "AradNazari won by resignation"]

1. e4 {[%clk 0:03:00.9]} 1... e5 {[%clk 0:03:00.2]} 2. f4 {[%clk 0:03:01]} 2...
Nf6 {[%clk 0:03:00.8]} 3. fxe5 {[%clk 0:03:00.3]} 3... Nxe4 {[%clk 0:03:01]} 4.
Nf3 {[%clk 0:03:01.2]} 4... d5 {[%clk 0:02:56.9]} 5. d3 {[%clk 0:03:01.2]} 5...
Nc5 {[%clk 0:02:57.2]} 6. d4 {[%clk 0:03:01.9]} 6... Ne6 {[%clk 0:02:57.6]} 7.
c4 {[%clk 0:03:00]} 7... Bb4+ {[%clk 0:02:48]} 8. Nc3 {[%clk 0:02:55.4]} 8...
O-O {[%clk 0:02:47.9]} 9. Bd2 {[%clk 0:02:44.9]} 9... Nxd4 {[%clk 0:02:37.4]}
10. cxd5 {[%clk 0:02:23.6]} 10... Bg4 {[%clk 0:02:29.8]} 11. Be2 {[%clk
0:02:08.4]} 11... Nxe2 {[%clk 0:02:12.8]} 12. Qxe2 {[%clk 0:02:09.3]} 12... Bxc3
{[%clk 0:02:13.3]} 13. Bxc3 {[%clk 0:02:10.2]} 13... Qxd5 {[%clk 0:02:13.9]} 14.
O-O {[%clk 0:02:10.7]} 14... Nc6 {[%clk 0:02:12.4]} 15. h3 {[%clk 0:02:10.8]}
15... Bh5 {[%clk 0:02:05.7]} 16. Qe3 {[%clk 0:02:11.1]} 16... Rae8 {[%clk
0:02:04]} 17. Qg5 {[%clk 0:01:58.2]} 17... Bxf3 {[%clk 0:01:43.8]} 18. Rxf3
{[%clk 0:01:59.1]} 18... f6 {[%clk 0:01:35.6]} 19. Qg3 {[%clk 0:01:29.6]} 19...
Nxe5 {[%clk 0:01:34.2]} 20. Rf5 {[%clk 0:01:29.8]} 20... Qe4 {[%clk 0:01:27.7]}
21. Raf1 {[%clk 0:01:25.6]} 21... Kh8 {[%clk 0:01:12.3]} 22. Bxe5 {[%clk
0:01:21.9]} 22... c6 {[%clk 0:00:45.1]} 23. Bc3 {[%clk 0:01:12.8]} 23... Qe6
{[%clk 0:00:39.7]} 24. Kh2 {[%clk 0:01:06.7]} 24... Qxa2 {[%clk 0:00:38.5]} 25.
Rxf6 {[%clk 0:01:00.3]} 25... Rxf6 {[%clk 0:00:29.6]} 26. Rxf6 {[%clk
0:01:00.7]} 1-0

[Event "Early-Titled-Tuesday-Blitz-February-06-2024"]
[Site "Chess.com"]
[Date "2024.02.06"]
[Round "7"]
[White "Snegokhod"]
[Black "unclear15"]
[Result "0-1"]
[WhiteElo "2551"]
[BlackElo "2419"]
[TimeControl "180+1"]
[EndTime "9:16:12 PST"]
[Termination "unclear15 won by checkmate"]

1. b3 {[%clk 0:03:00.9]} 1... d5 {[%clk 0:02:58]} 2. Bb2 {[%clk 0:03:00.4]} 2...
Bg4 {[%clk 0:02:58.9]} 3. h3 {[%clk 0:02:59.8]} 3... Bh5 {[%clk 0:02:59.1]} 4.
g4 {[%clk 0:02:59.9]} 4... Bg6 {[%clk 0:02:58.8]} 5. Bg2 {[%clk 0:03:00.5]} 5...
e6 {[%clk 0:02:58]} 6. c4 {[%clk 0:02:59.2]} 6... Nc6 {[%clk 0:02:57.4]} 7. cxd5
{[%clk 0:02:58.6]} 7... exd5 {[%clk 0:02:56.4]} 8. d3 {[%clk 0:02:57.9]} 8...
Bb4+ {[%clk 0:02:55.1]} 9. Nd2 {[%clk 0:02:57.1]} 9... Nf6 {[%clk 0:02:53.3]}
10. a3 {[%clk 0:02:56.5]} 10... Bc5 {[%clk 0:02:51.6]} 11. Ngf3 {[%clk
0:02:55.8]} 11... Qd6 {[%clk 0:02:48.4]} 12. b4 {[%clk 0:02:53.6]} 12... Bb6
{[%clk 0:02:45.2]} 13. b5 {[%clk 0:02:50.3]} 13... Ne7 {[%clk 0:02:43.2]} 14.
Ne5 {[%clk 0:02:44.6]} 14... O-O {[%clk 0:02:38.8]} 15. O-O {[%clk 0:02:38.4]}
15... c5 {[%clk 0:02:28]} 16. Qb3 {[%clk 0:02:19.8]} 16... Nd7 {[%clk
0:02:20.7]} 17. Ndf3 {[%clk 0:02:06.6]} 17... d4 {[%clk 0:02:15.1]} 18. Nxd7
{[%clk 0:01:52.7]} 18... Qxd7 {[%clk 0:02:16]} 19. Ne5 {[%clk 0:01:52.6]} 19...
Qc7 {[%clk 0:02:14.8]} 20. f4 {[%clk 0:01:47.8]} 20... h5 {[%clk 0:02:13.3]} 21.
Rac1 {[%clk 0:01:44.9]} 21... Kh8 {[%clk 0:02:12.7]} 22. Bxd4 {[%clk 0:01:44.1]}
22... Qd6 {[%clk 0:02:11.4]} 23. Bb2 {[%clk 0:01:39.6]} 23... c4+ {[%clk
0:02:11]} 24. Kh1 {[%clk 0:01:33.1]} 24... cxb3 {[%clk 0:02:09.7]} 25. f5 {[%clk
0:01:31]} 25... Bh7 {[%clk 0:02:06]} 26. Bxb7 {[%clk 0:01:28.6]} 26... Rad8
{[%clk 0:01:54.3]} 27. Bf3 {[%clk 0:01:22.1]} 27... Bd4 {[%clk 0:01:50.9]} 28.
Nc4 {[%clk 0:01:16.8]} 28... Qf6 {[%clk 0:01:49]} 29. Rb1 {[%clk 0:01:14.3]}
29... Bxb2 {[%clk 0:01:45.5]} 30. Rxb2 {[%clk 0:01:15.2]} 30... hxg4 {[%clk
0:01:44]} 31. hxg4 {[%clk 0:01:14.5]} 31... Rd4 {[%clk 0:01:41.6]} 32. Rxb3
{[%clk 0:01:12.6]} 32... Qh4+ {[%clk 0:01:40.7]} 33. Kg2 {[%clk 0:01:12]} 33...
Rxg4+ {[%clk 0:01:41.6]} 34. Bxg4 {[%clk 0:01:11.8]} 34... Qxg4+ {[%clk
0:01:39.9]} 35. Kf2 {[%clk 0:01:11.2]} 35... Nxf5 {[%clk 0:01:40.2]} 36. Ke1
{[%clk 0:01:10.7]} 36... Re8 {[%clk 0:01:38]} 37. e4 {[%clk 0:01:06]} 37...
Rxe4+ {[%clk 0:01:31.8]} 38. dxe4 {[%clk 0:01:05.5]} 38... Qxe4+ {[%clk
0:01:32.7]} 39. Kd2 {[%clk 0:00:53.2]} 39... Qxc4 {[%clk 0:01:31.6]} 40. Rbf3
{[%clk 0:00:51]} 40... Nd4 {[%clk 0:01:29]} 41. Rxf7 {[%clk 0:00:50.4]} 41...
Qd3+ {[%clk 0:01:26.1]} 42. Ke1 {[%clk 0:00:47.7]} 42... Qe2# {[%clk 0:01:26]}
0-1

[Event "Early-Titled-Tuesday-Blitz-February-06-2024"]
[Site "Chess.com"]
[Date "2024.02.06"]
[Round "7"]
[White "Perecke"]
[Black "PedroGil25"]
[Result "0-1"]
[WhiteElo "2574"]
[BlackElo "2411"]
[TimeControl "180+1"]
[EndTime "9:16:12 PST"]
[Termination "PedroGil25 won by checkmate"]

1. e4 {[%clk 0:03:00.9]} 1... c5 {[%clk 0:03:00.6]} 2. Nf3 {[%clk 0:03:00.5]}
2... e6 {[%clk 0:02:57.3]} 3. d4 {[%clk 0:03:00.9]} 3... cxd4 {[%clk 0:02:57]}
4. Nxd4 {[%clk 0:03:01.8]} 4... a6 {[%clk 0:02:54.9]} 5. Bd3 {[%clk 0:03:01.2]}
5... Qc7 {[%clk 0:02:54.4]} 6. O-O {[%clk 0:02:59.4]} 6... Nf6 {[%clk 0:02:55]}
7. Qe2 {[%clk 0:02:59.3]} 7... d6 {[%clk 0:02:55.4]} 8. c4 {[%clk 0:02:59.7]}
8... Be7 {[%clk 0:02:55.1]} 9. Nc3 {[%clk 0:03:00]} 9... O-O {[%clk 0:02:55.5]}
10. Be3 {[%clk 0:03:00.4]} 10... b6 {[%clk 0:02:56]} 11. Rac1 {[%clk 0:03:00.6]}
11... Nbd7 {[%clk 0:02:56.5]} 12. f4 {[%clk 0:03:01]} 12... Bb7 {[%clk
0:02:56.9]} 13. Bb1 {[%clk 0:03:00.9]} 13... Rfe8 {[%clk 0:02:57.1]} 14. b4
{[%clk 0:02:58.1]} 14... Rad8 {[%clk 0:02:56.1]} 15. g4 {[%clk 0:02:58.4]} 15...
g6 {[%clk 0:02:52.8]} 16. g5 {[%clk 0:02:56.4]} 16... Nh5 {[%clk 0:02:52.3]} 17.
f5 {[%clk 0:02:55.8]} 17... exf5 {[%clk 0:02:52]} 18. Nd5 {[%clk 0:02:54.6]}
18... Bxd5 {[%clk 0:02:49.3]} 19. cxd5 {[%clk 0:02:55.5]} 19... Qb7 {[%clk
0:02:47.4]} 20. Nc6 {[%clk 0:02:50.6]} 20... Rc8 {[%clk 0:02:43.9]} 21. Qc4
{[%clk 0:01:09]} 21... Bf8 {[%clk 0:02:25.9]} 22. Bf2 {[%clk 0:00:58.6]} 22...
Ne5 {[%clk 0:02:25.2]} 23. Qb3 {[%clk 0:00:47.7]} 23... Nxc6 {[%clk 0:02:22.3]}
24. dxc6 {[%clk 0:00:48.6]} 24... Rxc6 {[%clk 0:02:22.5]} 25. Qd5 {[%clk
0:00:45.2]} 25... Rec8 {[%clk 0:02:09.6]} 26. exf5 {[%clk 0:00:45.7]} 26... Qd7
{[%clk 0:02:07.3]} 27. fxg6 {[%clk 0:00:16.8]} 27... hxg6 {[%clk 0:02:06.2]} 28.
Rce1 {[%clk 0:00:10.3]} 28... Nf4 {[%clk 0:01:56.2]} 29. Qf3 {[%clk 0:00:10.2]}
29... Ne6 {[%clk 0:01:50.1]} 30. h4 {[%clk 0:00:06.2]} 30... Rc3 {[%clk
0:01:48.7]} 31. Qg4 {[%clk 0:00:04.9]} 31... R8c4 {[%clk 0:01:45.5]} 32. Qg2
{[%clk 0:00:02]} 32... Nf4 {[%clk 0:01:44.2]} 33. Qa8 {[%clk 0:00:01.7]} 33...
Qg4+ {[%clk 0:01:43.5]} 34. Kh1 {[%clk 0:00:01.7]} 34... Rh3# {[%clk 0:01:42.2]}
0-1

[Event "Early-Titled-Tuesday-Blitz-February-06-2024"]
[Site "Chess.com"]
[Date "2024.02.06"]
[Round "7"]
[White "NowInChess"]
[Black "SHIVACalypso"]
[Result "0-1"]
[WhiteElo "2337"]
[BlackElo "2510"]
[TimeControl "180+1"]
[EndTime "9:16:17 PST"]
[Termination "SHIVACalypso won by resignation"]

1. e4 {[%clk 0:03:00.9]} 1... Nc6 {[%clk 0:02:55.7]} 2. d4 {[%clk 0:02:58.2]}
2... e5 {[%clk 0:02:53.8]} 3. Nf3 {[%clk 0:02:58.1]} 3... exd4 {[%clk
0:02:52.7]} 4. Bc4 {[%clk 0:02:57.8]} 4... Nf6 {[%clk 0:02:51.4]} 5. e5 {[%clk
0:02:58]} 5... d5 {[%clk 0:02:49.9]} 6. Bb5 {[%clk 0:02:58.3]} 6... Ne4 {[%clk
0:02:48.2]} 7. Nxd4 {[%clk 0:02:58.5]} 7... Bd7 {[%clk 0:02:47.7]} 8. Bxc6
{[%clk 0:02:55.9]} 8... bxc6 {[%clk 0:02:44.4]} 9. O-O {[%clk 0:02:55.9]} 9...
Bc5 {[%clk 0:02:43.8]} 10. f3 {[%clk 0:02:56.3]} 10... Ng5 {[%clk 0:02:42.2]}
11. f4 {[%clk 0:02:56.5]} 11... Ne6 {[%clk 0:02:41.4]} 12. Be3 {[%clk
0:02:54.5]} 12... Nxd4 {[%clk 0:02:27.6]} 13. Bxd4 {[%clk 0:02:53.6]} 13...
Bxd4+ {[%clk 0:02:28.5]} 14. Qxd4 {[%clk 0:02:53.5]} 14... O-O {[%clk
0:02:29.2]} 15. Nd2 {[%clk 0:02:35.6]} 15... Bf5 {[%clk 0:02:28.2]} 16. Nb3
{[%clk 0:02:31.4]} 16... Bxc2 {[%clk 0:02:23.5]} 17. Nc5 {[%clk 0:02:30.2]}
17... Qh4 {[%clk 0:02:12.7]} 18. Rac1 {[%clk 0:02:03.7]} 18... Bf5 {[%clk
0:02:08.9]} 19. Rc3 {[%clk 0:01:42.4]} 19... Rab8 {[%clk 0:02:05.8]} 20. b3
{[%clk 0:01:39]} 20... a5 {[%clk 0:02:04]} 21. h3 {[%clk 0:01:30.8]} 21... Rb4
{[%clk 0:02:01.4]} 22. Qf2 {[%clk 0:01:20.2]} 22... Qe7 {[%clk 0:01:54.3]} 23.
g4 {[%clk 0:01:14.3]} 23... d4 {[%clk 0:01:50.5]} 24. Rcc1 {[%clk 0:01:06.7]}
24... Bc8 {[%clk 0:01:46.4]} 25. Nd3 {[%clk 0:01:03.5]} 25... c5 {[%clk
0:01:37.1]} 26. Nxb4 {[%clk 0:01:00.8]} 26... axb4 {[%clk 0:01:37.8]} 27. Qc2
{[%clk 0:00:59.6]} 27... Qh4 {[%clk 0:01:31.7]} 28. Qxc5 {[%clk 0:00:35.5]}
28... Qg3+ {[%clk 0:01:30.6]} 29. Kh1 {[%clk 0:00:32.8]} 29... Bb7+ {[%clk
0:01:28.4]} 30. Qc6 {[%clk 0:00:30.1]} 30... Bxc6+ {[%clk 0:01:28.4]} 31. Rxc6
{[%clk 0:00:31]} 31... Qxh3+ {[%clk 0:01:28.5]} 32. Kg1 {[%clk 0:00:30.7]} 32...
Qxg4+ {[%clk 0:01:28.3]} 33. Kh1 {[%clk 0:00:31.2]} 33... Qh3+ {[%clk
0:01:27.7]} 34. Kg1 {[%clk 0:00:31.1]} 34... Qg3+ {[%clk 0:01:28]} 35. Kh1
{[%clk 0:00:31.1]} 35... d3 {[%clk 0:01:27.6]} 36. Rxc7 {[%clk 0:00:28.9]} 36...
d2 {[%clk 0:01:26.4]} 37. Rd7 {[%clk 0:00:29.1]} 37... Qh3+ {[%clk 0:01:23.6]}
38. Kg1 {[%clk 0:00:28.7]} 38... Qxd7 {[%clk 0:01:24.1]} 0-1

[Event "Early-Titled-Tuesday-Blitz-February-06-2024"]
[Site "Chess.com"]
[Date "2024.02.06"]
[Round "7"]
[White "DavidGavrilescu18"]
[Black "santosalberto1987"]
[Result "1-0"]
[WhiteElo "2775"]
[BlackElo "2575"]
[TimeControl "180+1"]
[EndTime "9:16:30 PST"]
[Termination "DavidGavrilescu18 won on time"]

1. e4 {[%clk 0:03:00.2]} 1... e6 {[%clk 0:02:59.4]} 2. d4 {[%clk 0:03:00.2]}
2... d5 {[%clk 0:02:59.5]} 3. e5 {[%clk 0:03:00.8]} 3... c5 {[%clk 0:02:59.6]}
4. c3 {[%clk 0:03:01.4]} 4... Qb6 {[%clk 0:02:59.7]} 5. Nf3 {[%clk 0:03:01.7]}
5... Nc6 {[%clk 0:03:00]} 6. Be2 {[%clk 0:03:02.3]} 6... cxd4 {[%clk 0:02:57.4]}
7. cxd4 {[%clk 0:03:03.2]} 7... Nh6 {[%clk 0:02:57.5]} 8. Bxh6 {[%clk
0:02:59.3]} 8... Qxb2 {[%clk 0:02:56.8]} 9. Nbd2 {[%clk 0:02:59.9]} 9... gxh6
{[%clk 0:02:56.7]} 10. O-O {[%clk 0:03:00.6]} 10... Qb6 {[%clk 0:02:38.6]} 11.
Nb3 {[%clk 0:02:50.8]} 11... Qc7 {[%clk 0:02:04.3]} 12. Ne1 {[%clk 0:02:45.2]}
12... Be7 {[%clk 0:02:02.6]} 13. f4 {[%clk 0:02:45.3]} 13... O-O {[%clk
0:02:01.6]} 14. f5 {[%clk 0:02:42.3]} 14... exf5 {[%clk 0:02:01.3]} 15. Bd3
{[%clk 0:02:42.6]} 15... Be6 {[%clk 0:01:48.3]} 16. Bxf5 {[%clk 0:02:40.8]}
16... Qd7 {[%clk 0:01:37.4]} 17. Qh5 {[%clk 0:02:35.1]} 17... Bg5 {[%clk
0:01:32.3]} 18. Qh3 {[%clk 0:02:04.6]} 18... b6 {[%clk 0:01:03.9]} 19. Nd3
{[%clk 0:01:59.1]} 19... Ne7 {[%clk 0:00:58.1]} 20. Bxe6 {[%clk 0:01:56.1]}
20... fxe6 {[%clk 0:00:57.5]} 21. Qg4 {[%clk 0:01:48.9]} 21... Ng6 {[%clk
0:00:43.4]} 22. g3 {[%clk 0:01:47.9]} 22... Rxf1+ {[%clk 0:00:23.3]} 23. Rxf1
{[%clk 0:01:48.8]} 23... Rf8 {[%clk 0:00:23.5]} 24. h4 {[%clk 0:01:47.8]} 24...
Rxf1+ {[%clk 0:00:23.3]} 25. Kxf1 {[%clk 0:01:47.7]} 25... Qb5 {[%clk
0:00:22.7]} 26. Ke2 {[%clk 0:01:43.3]} 26... Qa4 {[%clk 0:00:12.1]} 27. hxg5
{[%clk 0:01:41.1]} 27... Qxa2+ {[%clk 0:00:11.8]} 28. Nd2 {[%clk 0:01:41.8]}
28... hxg5 {[%clk 0:00:11.3]} 29. Qxe6+ {[%clk 0:01:41.8]} 29... Kg7 {[%clk
0:00:11.3]} 30. Qf6+ {[%clk 0:01:40.5]} 30... Kg8 {[%clk 0:00:11.1]} 31. e6
{[%clk 0:01:39.9]} 31... Qa3 {[%clk 0:00:09.6]} 32. Ne5 {[%clk 0:01:31.4]} 32...
Nxe5 {[%clk 0:00:04.5]} 33. dxe5 {[%clk 0:01:29.8]} 33... Qa6+ {[%clk
0:00:02.5]} 34. Kf2 {[%clk 0:01:29.9]} 1-0

[Event "Early-Titled-Tuesday-Blitz-February-06-2024"]
[Site "Chess.com"]
[Date "2024.02.06"]
[Round "7"]
[White "guillembaches"]
[Black "mjray79"]
[Result "1-0"]
[WhiteElo "2574"]
[BlackElo "2713"]
[TimeControl "180+1"]
[EndTime "9:16:31 PST"]
[Termination "guillembaches won by resignation"]

1. d4 {[%clk 0:03:00.9]} 1... Nf6 {[%clk 0:02:55.6]} 2. Nf3 {[%clk 0:03:01.4]}
2... d5 {[%clk 0:02:53.3]} 3. Bg5 {[%clk 0:03:01.8]} 3... Ne4 {[%clk 0:02:51.4]}
4. Bh4 {[%clk 0:03:02.1]} 4... c5 {[%clk 0:02:50.9]} 5. e3 {[%clk 0:03:02.5]}
5... Nc6 {[%clk 0:02:50.5]} 6. Nbd2 {[%clk 0:03:02.3]} 6... cxd4 {[%clk
0:02:49]} 7. exd4 {[%clk 0:03:02.1]} 7... Bg4 {[%clk 0:02:47.7]} 8. Be2 {[%clk
0:02:54.8]} 8... Qd7 {[%clk 0:02:36.7]} 9. c3 {[%clk 0:02:50.1]} 9... e6 {[%clk
0:02:34.3]} 10. O-O {[%clk 0:02:36.2]} 10... Nxd2 {[%clk 0:02:23.9]} 11. Qxd2
{[%clk 0:02:35.2]} 11... Bd6 {[%clk 0:02:21]} 12. Rfe1 {[%clk 0:02:29.7]} 12...
O-O {[%clk 0:02:15.9]} 13. h3 {[%clk 0:02:29.2]} 13... Bf5 {[%clk 0:02:14.4]}
14. Bg5 {[%clk 0:02:25.8]} 14... Rac8 {[%clk 0:02:12.2]} 15. Bf1 {[%clk
0:02:22.4]} 15... f6 {[%clk 0:02:10.1]} 16. Bf4 {[%clk 0:02:20.4]} 16... Rfe8
{[%clk 0:02:09.9]} 17. Bxd6 {[%clk 0:02:18.1]} 17... Qxd6 {[%clk 0:02:10.8]} 18.
Nh4 {[%clk 0:02:12.7]} 18... Be4 {[%clk 0:02:07.1]} 19. f3 {[%clk 0:02:05]}
19... Bg6 {[%clk 0:01:58.3]} 20. Nxg6 {[%clk 0:02:03.6]} 20... hxg6 {[%clk
0:01:59.2]} 21. Rad1 {[%clk 0:01:57.9]} 21... Ne7 {[%clk 0:01:44.8]} 22. Bd3
{[%clk 0:01:50.7]} 22... Nf5 {[%clk 0:01:42.2]} 23. Bxf5 {[%clk 0:01:43]} 23...
gxf5 {[%clk 0:01:43.1]} 24. Re3 {[%clk 0:01:41]} 24... Kf7 {[%clk 0:01:39.2]}
25. Rde1 {[%clk 0:01:40.3]} 25... g5 {[%clk 0:01:23.7]} 26. Qe2 {[%clk
0:01:31.1]} 26... Rc7 {[%clk 0:01:22.7]} 27. a3 {[%clk 0:01:29.3]} 27... Rce7
{[%clk 0:01:21.8]} 28. Qb5 {[%clk 0:01:27.3]} 28... Rh8 {[%clk 0:01:18.6]} 29.
Qb4 {[%clk 0:01:24.6]} 29... Qg3 {[%clk 0:01:11.2]} 30. Rxe6 {[%clk 0:01:13]}
30... Rxe6 {[%clk 0:01:10.9]} 31. Qxb7+ {[%clk 0:01:12.7]} 31... Kg6 {[%clk
0:01:11.3]} 32. Rxe6 {[%clk 0:01:09.1]} 32... Rxh3 {[%clk 0:01:11.9]} 33. Qe7
{[%clk 0:00:54.4]} 33... Qh2+ {[%clk 0:01:00.1]} 34. Kf1 {[%clk 0:00:41.7]}
34... Qh1+ {[%clk 0:00:54.3]} 35. Kf2 {[%clk 0:00:41.5]} 35... Rh7 {[%clk
0:00:55]} 36. Rxf6+ {[%clk 0:00:36.4]} 1-0

[Event "Early-Titled-Tuesday-Blitz-February-06-2024"]
[Site "Chess.com"]
[Date "2024.02.06"]
[Round "7"]
[White "yobdc"]
[Black "GMRAVEN_ON_YOUTUBE"]
[Result "1-0"]
[WhiteElo "2613"]
[BlackElo "2766"]
[TimeControl "180+1"]
[EndTime "9:16:32 PST"]
[Termination "yobdc won by resignation"]

1. c4 {[%clk 0:02:57.3]} 1... f5 {[%clk 0:02:59.9]} 2. d4 {[%clk 0:02:56.3]}
2... Nf6 {[%clk 0:03:00.4]} 3. g3 {[%clk 0:02:56.8]} 3... g6 {[%clk 0:03:00.9]}
4. Bg2 {[%clk 0:02:57.3]} 4... Bg7 {[%clk 0:03:01.5]} 5. Nh3 {[%clk 0:02:57.8]}
5... O-O {[%clk 0:02:56.4]} 6. O-O {[%clk 0:02:57.8]} 6... d6 {[%clk 0:02:56.2]}
7. d5 {[%clk 0:02:54.6]} 7... c6 {[%clk 0:02:45.2]} 8. Nc3 {[%clk 0:02:53.6]}
8... e5 {[%clk 0:02:44.2]} 9. dxe6 {[%clk 0:02:53.6]} 9... Qe7 {[%clk
0:02:44.3]} 10. Bf4 {[%clk 0:02:46.1]} 10... Rd8 {[%clk 0:02:42.2]} 11. Bg5
{[%clk 0:02:38.4]} 11... Bxe6 {[%clk 0:02:41.2]} 12. b3 {[%clk 0:02:34.2]} 12...
h6 {[%clk 0:02:41.5]} 13. Bxf6 {[%clk 0:02:34.6]} 13... Qxf6 {[%clk 0:02:39.4]}
14. Rc1 {[%clk 0:02:34.8]} 14... g5 {[%clk 0:02:38.3]} 15. f4 {[%clk 0:02:27.3]}
15... Qd4+ {[%clk 0:02:31.6]} 16. Kh1 {[%clk 0:02:22.9]} 16... g4 {[%clk
0:02:15.2]} 17. Nf2 {[%clk 0:02:19.6]} 17... Qe3 {[%clk 0:02:14.9]} 18. Qc2
{[%clk 0:02:07.6]} 18... Na6 {[%clk 0:02:12.2]} 19. Ncd1 {[%clk 0:02:07.8]}
19... Qc5 {[%clk 0:01:58.9]} 20. e4 {[%clk 0:02:07.6]} 20... Nb4 {[%clk
0:01:59.1]} 21. Qe2 {[%clk 0:02:06.2]} 21... a5 {[%clk 0:01:47.2]} 22. Ne3
{[%clk 0:02:02.3]} 22... Re8 {[%clk 0:01:38.6]} 23. a3 {[%clk 0:01:33.4]} 23...
Na6 {[%clk 0:01:38.5]} 24. Qd3 {[%clk 0:01:28]} 24... Bd4 {[%clk 0:01:13.9]} 25.
exf5 {[%clk 0:01:20.7]} 25... Bf7 {[%clk 0:00:56.5]} 26. Nexg4 {[%clk
0:01:16.4]} 26... h5 {[%clk 0:00:45.3]} 27. Nh6+ {[%clk 0:01:16.4]} 27... Kg7
{[%clk 0:00:45.6]} 28. Nxf7 {[%clk 0:01:08.6]} 28... Bxf2 {[%clk 0:00:43.7]} 29.
Ng5 {[%clk 0:01:02.5]} 29... Nc7 {[%clk 0:00:35.6]} 30. f6+ {[%clk 0:00:58.9]}
30... Kxf6 {[%clk 0:00:36]} 31. Qh7 {[%clk 0:00:56.1]} 31... Rf8 {[%clk
0:00:24.4]} 32. Ne4+ {[%clk 0:00:55.8]} 1-0

[Event "Early-Titled-Tuesday-Blitz-February-06-2024"]
[Site "Chess.com"]
[Date "2024.02.06"]
[Round "7"]
[White "Balla_Tamas"]
[Black "maximnovik"]
[Result "0-1"]
[WhiteElo "2410"]
[BlackElo "2600"]
[TimeControl "180+1"]
[EndTime "9:16:33 PST"]
[Termination "maximnovik won by resignation"]

1. e4 {[%clk 0:03:00.9]} 1... c6 {[%clk 0:03:00]} 2. d4 {[%clk 0:02:59.6]} 2...
d5 {[%clk 0:02:59.6]} 3. e5 {[%clk 0:03:00.2]} 3... Bf5 {[%clk 0:02:59.3]} 4. h4
{[%clk 0:02:59.8]} 4... Qb6 {[%clk 0:02:58.3]} 5. Bd3 {[%clk 0:02:32.8]} 5...
Qxd4 {[%clk 0:02:55.7]} 6. Nf3 {[%clk 0:02:24.9]} 6... Qg4 {[%clk 0:02:55.4]} 7.
Be3 {[%clk 0:01:49.9]} 7... Bxd3 {[%clk 0:02:49.9]} 8. Qxd3 {[%clk 0:01:50.8]}
8... Qb4+ {[%clk 0:02:42.1]} 9. Nc3 {[%clk 0:01:37.7]} 9... e6 {[%clk
0:02:42.5]} 10. a3 {[%clk 0:01:34.7]} 10... Qa5 {[%clk 0:02:41]} 11. O-O {[%clk
0:01:33.6]} 11... Ne7 {[%clk 0:02:38.7]} 12. b4 {[%clk 0:01:23.1]} 12... Qc7
{[%clk 0:02:38.6]} 13. Bc5 {[%clk 0:01:23]} 13... Nc8 {[%clk 0:02:29.9]} 14.
Bxf8 {[%clk 0:01:21.7]} 14... Kxf8 {[%clk 0:02:30.3]} 15. Ne2 {[%clk 0:01:22]}
15... Nb6 {[%clk 0:02:29.2]} 16. Nf4 {[%clk 0:01:18.9]} 16... N8d7 {[%clk
0:02:28.9]} 17. Rfe1 {[%clk 0:01:16.7]} 17... Nc4 {[%clk 0:02:25.6]} 18. Ng5
{[%clk 0:01:14.4]} 18... Re8 {[%clk 0:02:20.8]} 19. Qf3 {[%clk 0:00:59.9]} 19...
Ke7 {[%clk 0:01:32.2]} 20. Nxf7 {[%clk 0:00:11.4]} 20... Rhf8 {[%clk 0:01:27.6]}
21. Nd6 {[%clk 0:00:11.6]} 21... Ndxe5 {[%clk 0:01:23.9]} 22. Qg4 {[%clk
0:00:06.2]} 22... Qxd6 {[%clk 0:01:21.5]} 23. Qg5+ {[%clk 0:00:05.7]} 23... Kd7
{[%clk 0:01:20.4]} 24. Qxg7+ {[%clk 0:00:05.8]} 24... Rf7 {[%clk 0:01:20.2]} 25.
Qg5 {[%clk 0:00:06.2]} 25... Rf5 {[%clk 0:01:12.6]} 26. Qh6 {[%clk 0:00:05.7]}
26... Qf8 {[%clk 0:01:07.8]} 27. Qxh7+ {[%clk 0:00:05.9]} 27... Re7 {[%clk
0:01:08]} 0-1